lending/lending_fUSD_20250131
["ID","MTS","AMOUNT","RATE_DAILY","PERIOD"]
[351135876,1738348261034,-2877.99,0.00017945,2]
[351135877,1738348261044,-2087.9,0.00017945,2]
[351135878,1738348261054,-500.0,0.00017945,2]
[351135879,1738348261064,-500.0,0.00017945,2]
[351135880,1738348261073,-2031.19,0.00017945,2]
[351135881,1738348261083,-1464.79,0.00017945,2]
[351135882,1738348261093,-500.0,0.00017945,2]
[351135883,1738348261103,-7094.67,0.00017945,2]
[351135884,1738348261113,-846.73,0.00017945,2]
[351135885,1738348261123,-1572.93,0.00017945,2]
[351135886,1738348261132,-774.29,0.00017973,2]
[351135887,1738348261142,-439.19,0.00017973,2]
[351135888,1738348261152,-439.19,0.00017973,2]
[351135889,1738348261161,-774.29,0.00017973,2]
[351135890,1738348261173,-439.19,0.00017973,2]
[351135891,1738348261183,-621.04,0.00017973,2]
[351135892,1738348261192,-502.0,0.00017973,2]
[351135893,1738348261201,-500.0,0.00017999,2]
[351135894,1738348261211,-500.0,0.00017999,2]
[351135895,1738348261220,-500.0,0.00017999,2]
[351135896,1738348261230,-500.0,0.00017999,2]
[351135897,1738348261239,-500.0,0.00017999,2]
[351135898,1738348261248,-500.0,0.00017999,2]
[351135899,1738348261258,-500.0,0.00017999,2]
[351135900,1738348261269,-565.22,0.00017999,2]
[351135901,1738348261279,-565.22,0.00017999,2]
[351135902,1738348261288,-565.22,0.00017999,2]
[351135903,1738348261299,-999.0,0.00017999,2]
[351135904,1738348261309,-677565.29613717,0.00018,2]
[351135905,1738348261319,-42147.62739283,0.00018,10]
[351135906,1738348261330,-71694.99604211,0.00018,2]
[351135907,1738348261341,-51802.73399033,0.00018,7]
[351135908,1738348261350,-153.963521,0.00018065,2]
[351135909,1738348261361,-153.408907,0.00018065,2]
[351135910,1738348261371,-153.408906,0.00018065,2]
[351135911,1738348261381,-1153.16590249,0.00018072,2]
[351135912,1738348261391,-500.0,0.00018078,2]
[351135913,1738348261400,-500.0,0.00018078,2]
[351135914,1738348261409,-532.4476817,0.00018078,2]
[351135915,1738348261418,-500.0,0.00018078,2]
[351135916,1738348261431,-500.0,0.00018078,2]
[351135917,1738348261440,-500.0,0.00018078,2]
[351135918,1738348261449,-500.0,0.00018078,2]
[351135919,1738348261459,-500.0,0.00018078,2]
[351135920,1738348261468,-500.0,0.00018078,2]
[351135921,1738348261477,-500.0,0.00018078,2]
[351135922,1738348261487,-500.0,0.00018078,2]
[351135923,1738348261499,-500.0,0.00018078,2]
[351135924,1738348261510,-500.0,0.00018078,2]
[351135925,1738348261521,-500.0,0.00018078,2]
[351135926,1738348261531,-786.06,0.00018078,2]
[351135927,1738348261541,-363.36,0.00018078,2]
[351135928,1738348261551,-744.03,0.00018078,2]
[351135929,1738348261560,-1041.45,0.00018078,2]
[351135930,1738348261571,-500.0,0.00018078,2]
[351135931,1738348261581,-679.36,0.00018078,2]
[351135932,1738348261592,-500.0,0.00018078,2]
[351135933,1738348261601,-639.49,0.00018078,2]
[351135934,1738348261611,-983.34,0.00018078,2]
[351135935,1738348261621,-853.27,0.00018078,2]
[351135936,1738348261632,-2290.49,0.00018078,2]
[351135937,1738348261643,-15748.87,0.00018078,2]
[351135938,1738348261653,-1756.23,0.00018078,2]
[351135939,1738348261664,-5804.66,0.00018078,2]
[351135940,1738348261677,-1011.15,0.00018078,2]
[351135941,1738348261687,-1398.05,0.00018078,2]
[351135942,1738348261696,-500.0,0.00018078,2]
[351135943,1738348261706,-706.26,0.00018078,2]
[351135944,1738348261716,-1396.62,0.00018078,2]
[351135945,1738348261727,-1348.69,0.00018078,2]
[351135946,1738348261737,-1000.0,0.00018078,2]
[351135947,1738348261748,-1491.37,0.00018078,2]
[351135948,1738348261758,-500.0,0.00018079,2]
[351135949,1738348261768,-500.0,0.00018079,2]
[351135950,1738348261778,-500.0,0.00018079,2]
[351135951,1738348261788,-500.0,0.00018079,2]
[351135952,1738348261798,-500.0,0.00018079,2]
[351135953,1738348261808,-592.09,0.00018079,2]
[351135954,1738348261966,-541.54,0.00018079,2]
[351135955,1738348261975,-661.57,0.00018079,2]
[351135956,1738348261984,-500.0,0.00018079,2]
[351135957,1738348261994,-568.28,0.00018079,2]
[351135958,1738348262004,-517.91,0.00018079,2]
[351135959,1738348262013,-500.0,0.00018079,2]
[351135960,1738348262023,-500.0,0.00018079,2]
[351135961,1738348262033,-573.54,0.00018079,2]
[351135962,1738348262042,-467.16401184,0.00018079,2]
[351135963,1738348262052,-500.0,0.00018079,2]
[351135964,1738348262062,-1026.2,0.00018079,2]
[351135965,1738348262071,-730.37,0.00018079,2]
[351135966,1738348262080,-500.0,0.00018079,2]
[351135967,1738348262089,-536.25,0.00018079,2]
[351135968,1738348262098,-978.34,0.00018079,2]
[351135969,1738348262107,-519.92,0.00018079,2]
[351135970,1738348262116,-932.35,0.00018079,2]
[351135971,1738348262126,-1577.73,0.00018079,2]
[351135972,1738348262135,-647.42,0.00018079,2]
[351135973,1738348262144,-2652.51,0.00018079,2]
[351135974,1738348262153,-286.106421,0.00018079,2]
[351135975,1738348262163,-500.0,0.00018079,2]
[351135976,1738348262175,-551.45,0.00018079,2]
[351135977,1738348262184,-616.52,0.00018079,2]
[351135978,1738348262193,-611.99,0.00018079,2]
[351135979,1738348262202,-1917.23,0.00018079,2]
[351135980,1738348262211,-1010.98,0.00018079,2]
[351135981,1738348262220,-345.181563,0.00018079,2]
[351135982,1738348262229,-500.0,0.00018079,2]
[351135983,1738348262238,-1746.14,0.00018079,2]
[351135984,1738348262247,-1127.11,0.00018079,2]
[351135985,1738348262257,-957.27,0.00018079,2]
[351135986,1738348262266,-683.39,0.00018079,2]
[351135987,1738348262275,-834.53,0.00018079,2]
[351135988,1738348262284,-3304.95,0.00018079,2]
[351135989,1738348262294,-162.579987,0.00018079,2]
[351135990,1738348262303,-1375.96,0.00018079,2]
[351135991,1738348262313,-1152.1,0.00018079,2]
[351135992,1738348262322,-1117.85,0.00018079,2]
[351135993,1738348262332,-637.73,0.00018079,2]
[351135994,1738348262342,-1174.79,0.00018079,2]
[351135995,1738348262351,-861.45,0.00018079,2]
[351135996,1738348262361,-5050.15,0.00018079,2]
[351135997,1738348262369,-1552.68,0.00018079,2]
[351135998,1738348262379,-1714.15,0.00018079,2]
[351135999,1738348262388,-970.54,0.00018079,2]
[351136000,1738348262398,-974.2,0.00018079,2]
[351136001,1738348262407,-2977.2,0.00018079,2]
[351136002,1738348262416,-2472.78,0.00018079,2]
[351136003,1738348262428,-2130.65,0.00018079,2]
[351136004,1738348262438,-164.88144,0.00018079,2]
[351136005,1738348262447,-2310.79,0.00018079,2]
[351136006,1738348262457,-3082.33,0.00018079,2]
[351136007,1738348262466,-1236.46,0.00018079,2]
[351136008,1738348262475,-159.421069,0.00018079,2]
[351136009,1738348262484,-500.0,0.00018079,2]
[351136010,1738348262494,-1531.95,0.00018079,2]
[351136011,1738348262510,-1897.38,0.00018079,2]
[351136012,1738348262519,-500.0,0.00018079,2]
[351136013,1738348262528,-4363.87,0.00018079,2]
[351136014,1738348262539,-4150.61,0.00018079,2]
[351136015,1738348262548,-500.0,0.00018079,2]
[351136016,1738348262558,-977.31,0.00018079,2]
[351136017,1738348262567,-500.0,0.00018079,2]
[351136018,1738348262577,-500.0,0.00018079,2]
[351136019,1738348262587,-500.0,0.00018079,2]
[351136020,1738348262596,-755.3,0.00018079,2]
[351136021,1738348262605,-657.65,0.0001808,2]
[351136022,1738348262615,-500.0,0.0001808,2]
[351136023,1738348262624,-500.0,0.0001808,2]
[351136024,1738348262633,-500.0,0.0001808,2]
[351136025,1738348262642,-500.0,0.0001808,2]
[351136026,1738348262651,-500.0,0.0001808,2]
[351136027,1738348262660,-772.66,0.0001808,2]
[351136028,1738348262673,-500.0,0.0001808,2]
[351136029,1738348262683,-500.0,0.0001808,2]
[351136030,1738348262692,-606.93,0.0001808,2]
[351136031,1738348262701,-538.50533069,0.0001808,2]
[351136032,1738348262711,-522.94,0.0001808,2]
[351136033,1738348262720,-691.72,0.0001808,2]
[351136034,1738348262729,-694.08,0.0001808,2]
[351136035,1738348262739,-500.0,0.0001808,2]
[351136036,1738348262748,-500.0,0.0001808,2]
[351136037,1738348262758,-622.01,0.0001808,2]
[351136038,1738348262768,-500.0,0.0001808,2]
[351136039,1738348262778,-500.0,0.0001808,2]
[351136040,1738348262787,-500.0,0.0001808,2]
[351136041,1738348262797,-500.0,0.0001808,2]
[351136042,1738348262807,-799.89,0.0001808,2]
[351136043,1738348262817,-500.0,0.0001808,2]
[351136044,1738348262827,-666.3,0.0001808,2]
[351136045,1738348262838,-536.21,0.0001808,2]
[351136046,1738348262848,-1030.96,0.0001808,2]
[351136047,1738348262858,-872.1,0.0001808,2]
[351136048,1738348262867,-544.21,0.0001808,2]
[351136049,1738348262877,-500.0,0.0001808,2]
[351136050,1738348262888,-532.59264848,0.0001808,2]
[351136051,1738348262898,-4715.16,0.0001808,2]
[351136052,1738348262908,-500.0,0.0001808,2]
[351136053,1738348262917,-993.3,0.0001808,2]
[351136054,1738348262930,-2605.9,0.0001808,2]
[351136055,1738348262940,-4721.91,0.0001808,2]
[351136056,1738348262949,-2283.47,0.0001808,2]
[351136057,1738348262959,-939.45,0.0001808,2]
[351136058,1738348262968,-2389.08,0.0001808,2]
[351136059,1738348262978,-500.0,0.0001808,2]
[351136060,1738348262987,-557.93,0.0001808,2]
[351136061,1738348262997,-965.04,0.0001808,2]
[351136062,1738348263006,-2395.63,0.0001808,2]
[351136063,1738348263016,-1060.87,0.0001808,2]
[351136064,1738348263026,-1276.49,0.0001808,2]
[351136065,1738348263035,-622.63521232,0.0001808,2]
[351136066,1738348263045,-500.0,0.0001808,2]
[351136067,1738348263055,-973.6,0.0001808,2]
[351136068,1738348263065,-870.13,0.0001808,2]
[351136069,1738348263075,-510.61,0.00018081,2]
[351136070,1738348263084,-500.0,0.00018081,2]
[351136071,1738348263093,-500.0,0.00018081,2]
[351136072,1738348263102,-500.0,0.00018081,2]
[351136073,1738348263112,-539.55781953,0.00018081,2]
[351136074,1738348263121,-500.0,0.00018081,2]
[351136075,1738348263130,-500.0,0.00018081,2]
[351136076,1738348263140,-235.46516683,0.00018081,2]
[351136077,1738348263149,-500.0,0.00018081,2]
[351136078,1738348263159,-1455.79,0.00018082,2]
[351136079,1738348263169,-686.9,0.00018082,2]
[351136080,1738348263183,-500.0,0.00018082,2]
[351136081,1738348263193,-2551.27,0.00018082,2]
[351136082,1738348263202,-1359.74,0.00018082,2]
[351136083,1738348263211,-3164.08,0.00018082,2]
[351136084,1738348263221,-1771.52,0.00018082,2]
[351136085,1738348263230,-500.0,0.00018082,2]
[351136086,1738348263240,-3352.95,0.00018082,2]
[351136087,1738348263250,-1723.08,0.00018082,2]
[351136088,1738348263259,-904.61,0.00018082,2]
[351136089,1738348263269,-3205.13,0.00018082,2]
[351136090,1738348263279,-2877.99,0.00018082,2]
[351136091,1738348263288,-2087.9,0.00018082,2]
[351136092,1738348263298,-500.0,0.00018082,2]
[351136093,1738348263308,-500.0,0.00018082,2]
[351136094,1738348263317,-2031.19,0.00018082,2]
[351136095,1738348263327,-1464.79,0.00018082,2]
[351136096,1738348263337,-500.0,0.00018082,2]
[351136097,1738348263348,-7094.67,0.00018082,2]
[351136098,1738348263358,-846.73,0.00018082,2]
[351136099,1738348263369,-1572.93,0.00018082,2]
[351136100,1738348263379,-329.26,0.00018082,2]
[351136101,1738348263389,-700.48,0.00018097,2]
[351136102,1738348263400,-1428.82993993,0.000181,2]
[351136103,1738348263410,-167.9,0.0001812,2]
[351136104,1738348263424,-1000.0,0.00018121,2]
[351136105,1738348263434,-500.0,0.00018136,2]
[351136106,1738348263445,-152.0,0.00018142,3]
[351136107,1738348263455,-1000.0,0.00018143,2]
[351136108,1738348263466,-385.0,0.0001817,2]
[351136109,1738348263476,-1153.16590249,0.0001821,2]
[351136110,1738348263485,-500.0,0.00018215,2]
[351136111,1738348263495,-500.0,0.00018215,2]
[351136112,1738348263508,-500.0,0.00018215,2]
[351136113,1738348263517,-500.0,0.00018215,2]
[351136114,1738348263527,-500.0,0.00018215,2]
[351136115,1738348263537,-500.0,0.00018215,2]
[351136116,1738348263547,-196.89510558,0.00018215,2]
[351136117,1738348263557,-500.0,0.00018215,2]
[351136118,1738348263567,-500.0,0.00018215,2]
[351136119,1738348263579,-500.0,0.00018215,2]
[351136120,1738348263588,-500.0,0.00018215,2]
[351136121,1738348263597,-500.0,0.00018215,2]
[351136122,1738348263607,-786.06,0.00018215,2]
[351136123,1738348263616,-744.03,0.00018215,2]
[351136124,1738348263625,-1041.45,0.00018215,2]
[351136125,1738348263635,-500.0,0.00018215,2]
[351136126,1738348263645,-679.36,0.00018215,2]
[351136127,1738348263655,-500.0,0.00018215,2]
[351136128,1738348263665,-639.49,0.00018215,2]
[351136129,1738348263678,-983.34,0.00018215,2]
[351136130,1738348263687,-853.27,0.00018215,2]
[351136131,1738348263697,-2290.49,0.00018215,2]
[351136132,1738348263707,-15748.87,0.00018215,2]
[351136133,1738348263716,-1756.23,0.00018215,2]
[351136134,1738348263727,-5804.66,0.00018215,2]
[351136135,1738348263736,-1011.15,0.00018215,2]
[351136136,1738348263745,-1398.05,0.00018215,2]
[351136137,1738348263755,-565.22,0.00018215,2]
[351136138,1738348263765,-500.0,0.00018215,2]
[351136139,1738348263775,-706.26,0.00018215,2]
[351136140,1738348263785,-1396.62,0.00018215,2]
[351136141,1738348263795,-1348.69,0.00018215,2]
[351136142,1738348263804,-1000.0,0.00018215,2]
[351136143,1738348263814,-1491.37,0.00018215,2]
[351136144,1738348263824,-500.0,0.00018216,2]
[351136145,1738348263834,-500.0,0.00018216,2]
[351136146,1738348263843,-500.0,0.00018216,2]
[351136147,1738348263852,-500.0,0.00018216,2]
[351136148,1738348263862,-500.0,0.00018216,2]
[351136149,1738348263871,-592.09,0.00018216,2]
[351136150,1738348263880,-541.54,0.00018216,2]
[351136151,1738348263890,-661.57,0.00018216,2]
[351136152,1738348263899,-161.30787903,0.00018216,2]
[351136153,1738348263908,-568.28,0.00018216,2]
[351136154,1738348263917,-517.91,0.00018216,2]
[351136155,1738348263930,-500.0,0.00018216,2]
[351136156,1738348263939,-500.0,0.00018216,2]
[351136157,1738348263949,-573.54,0.00018216,2]
[351136158,1738348263959,-500.0,0.00018216,2]
[351136159,1738348263969,-1026.2,0.00018216,2]
[351136160,1738348263978,-730.37,0.00018216,2]
[351136161,1738348263988,-444.27231033,0.00018216,2]
[351136162,1738348263999,-536.25,0.00018216,2]
[351136163,1738348264008,-978.34,0.00018216,2]
[351136164,1738348264018,-519.92,0.00018216,2]
[351136165,1738348264028,-932.35,0.00018216,2]
[351136166,1738348264038,-1577.73,0.00018216,2]
[351136167,1738348264047,-647.42,0.00018216,2]
[351136168,1738348264057,-2652.51,0.00018216,2]
[351136169,1738348264067,-286.106421,0.00018216,2]
[351136170,1738348264077,-500.0,0.00018216,2]
[351136171,1738348264086,-551.45,0.00018216,2]
[351136172,1738348264095,-616.52,0.00018216,2]
[351136173,1738348264104,-611.99,0.00018216,2]
[351136174,1738348264115,-1917.23,0.00018216,2]
[351136175,1738348264124,-1010.98,0.00018216,2]
[351136176,1738348264134,-345.181563,0.00018216,2]
[351136177,1738348264143,-1746.14,0.00018216,2]
[351136178,1738348264153,-1127.11,0.00018216,2]
[351136179,1738348264163,-957.27,0.00018216,2]
[351136180,1738348264174,-683.39,0.00018216,2]
[351136181,1738348264184,-834.53,0.00018216,2]
[351136182,1738348264194,-3304.95,0.00018216,2]
[351136183,1738348264204,-1375.96,0.00018216,2]
[351136184,1738348264214,-1152.1,0.00018216,2]
[351136185,1738348264223,-1117.85,0.00018216,2]
[351136186,1738348264232,-151.742883,0.00018216,2]
[351136187,1738348264242,-637.73,0.00018216,2]
[351136188,1738348264252,-1174.79,0.00018216,2]
[351136189,1738348264261,-861.45,0.00018216,2]
[351136190,1738348264270,-5050.15,0.00018216,2]
[351136191,1738348264280,-1552.68,0.00018216,2]
[351136192,1738348264289,-1714.15,0.00018216,2]
[351136193,1738348264299,-970.54,0.00018216,2]
[351136194,1738348264308,-974.2,0.00018216,2]
[351136195,1738348264317,-2977.2,0.00018216,2]
[351136196,1738348264327,-2130.65,0.00018216,2]
[351136197,1738348264337,-2472.78,0.00018216,2]
[351136198,1738348264347,-2310.79,0.00018216,2]
[351136199,1738348264356,-3082.33,0.00018216,2]
[351136200,1738348264365,-1236.46,0.00018216,2]
[351136201,1738348264375,-500.0,0.00018216,2]
[351136202,1738348264384,-1531.95,0.00018216,2]
[351136203,1738348264393,-1897.38,0.00018216,2]
[351136204,1738348264403,-500.0,0.00018216,2]
[351136205,1738348264412,-4363.87,0.00018216,2]
[351136206,1738348264423,-4150.61,0.00018216,2]
[351136207,1738348264433,-500.0,0.00018216,2]
[351136208,1738348264443,-166.309678,0.00018216,2]
[351136209,1738348264452,-977.31,0.00018216,2]
[351136210,1738348264462,-500.0,0.00018216,2]
[351136211,1738348264472,-151.74288,0.00018216,2]
[351136212,1738348264482,-500.0,0.00018216,2]
[351136213,1738348264492,-500.0,0.00018216,2]
[351136214,1738348264504,-755.3,0.00018216,2]
[351136215,1738348264513,-657.65,0.00018217,2]
[351136216,1738348264523,-500.0,0.00018217,2]
[351136217,1738348264533,-500.0,0.00018217,2]
[351136218,1738348264543,-279.37905004,0.00018217,2]
[351136219,1738348264552,-500.0,0.00018217,2]
[351136220,1738348264561,-500.0,0.00018217,2]
[351136221,1738348264573,-772.66,0.00018217,2]
[351136222,1738348264592,-500.0,0.00018217,2]
[351136223,1738348264602,-500.0,0.00018217,2]
[351136224,1738348264612,-606.93,0.00018217,2]
[351136225,1738348264621,-522.94,0.00018217,2]
[351136226,1738348264631,-691.72,0.00018217,2]
[351136227,1738348264641,-694.08,0.00018217,2]
[351136228,1738348264650,-500.0,0.00018217,2]
[351136229,1738348264659,-500.0,0.00018217,2]
[351136230,1738348264669,-622.01,0.00018217,2]
[351136231,1738348264680,-500.0,0.00018217,2]
[351136232,1738348264690,-500.0,0.00018217,2]
[351136233,1738348264699,-584.67536575,0.00018217,2]
[351136234,1738348264708,-500.0,0.00018217,2]
[351136235,1738348264717,-799.89,0.00018217,2]
[351136236,1738348264727,-500.0,0.00018217,2]
[351136237,1738348264737,-666.3,0.00018217,2]
[351136238,1738348264746,-536.21,0.00018217,2]
[351136239,1738348264756,-872.1,0.00018217,2]
[351136240,1738348264766,-1030.96,0.00018217,2]
[351136241,1738348264776,-544.21,0.00018217,2]
[351136242,1738348264794,-500.0,0.00018217,2]
[351136243,1738348264804,-4715.16,0.00018217,2]
[351136244,1738348264814,-500.0,0.00018217,2]
[351136245,1738348264823,-993.3,0.00018217,2]
[351136246,1738348264832,-2605.9,0.00018217,2]
[351136247,1738348264843,-4721.91,0.00018217,2]
[351136248,1738348264852,-2283.47,0.00018217,2]
[351136249,1738348264862,-939.45,0.00018217,2]
[351136250,1738348264871,-2389.08,0.00018217,2]
[351136251,1738348264880,-500.0,0.00018217,2]
[351136252,1738348264890,-557.93,0.00018217,2]
[351136253,1738348264900,-965.04,0.00018217,2]
[351136254,1738348264911,-2395.63,0.00018217,2]
[351136255,1738348264921,-1060.87,0.00018217,2]
[351136256,1738348264930,-1276.49,0.00018217,2]
[351136257,1738348264940,-500.0,0.00018217,2]
[351136258,1738348264950,-973.6,0.00018217,2]
[351136259,1738348264959,-870.13,0.00018217,2]
[351136260,1738348264968,-510.61,0.00018218,2]
[351136261,1738348264977,-500.0,0.00018218,2]
[351136262,1738348264987,-500.0,0.00018218,2]
[351136263,1738348264998,-500.0,0.00018218,2]
[351136264,1738348265007,-500.0,0.00018218,2]
[351136265,1738348265017,-500.0,0.00018218,2]
[351136266,1738348265028,-1455.79,0.00018219,2]
[351136267,1738348265039,-686.9,0.00018219,2]
[351136268,1738348265048,-500.0,0.00018219,2]
[351136269,1738348265058,-2551.27,0.00018219,2]
[351136270,1738348265068,-1359.74,0.00018219,2]
[351136271,1738348265077,-3164.08,0.00018219,2]
[351136272,1738348265086,-1771.52,0.00018219,2]
[351136273,1738348265096,-500.0,0.00018219,2]
[351136274,1738348265105,-3352.95,0.00018219,2]
[351136275,1738348265114,-1723.08,0.00018219,2]
[351136276,1738348265124,-904.61,0.00018219,2]
[351136277,1738348265134,-3205.13,0.00018219,2]
[351136278,1738348265144,-2877.99,0.00018219,2]
[351136279,1738348265154,-2087.9,0.00018219,2]
[351136280,1738348265165,-297.60875,0.00018219,2]
[351136281,1738348265176,-500.0,0.00018219,2]
[351136282,1738348265186,-2031.19,0.00018219,2]
[351136283,1738348265196,-1464.79,0.00018219,2]
[351136284,1738348265207,-500.0,0.00018219,2]
[351136285,1738348265216,-7094.67,0.00018219,2]
[351136286,1738348265226,-846.73,0.00018219,2]
[351136287,1738348265383,-1572.93,0.00018219,2]
[351136288,1738348265393,-150.4877767,0.00018279,2]
[351136289,1738348265403,-150.0,0.00018279,2]
[351136290,1738348265412,-150.0,0.00018279,2]
[351136291,1738348265424,-150.0,0.00018279,2]
[351136292,1738348265434,-150.0,0.00018279,2]
[351136293,1738348265443,-2577.0,0.00018279,2]
[351136294,1738348265453,-268.22154354,0.00018279,2]
[351136295,1738348265462,-150.0,0.00018306,2]
[351136296,1738348265472,-150.0,0.00018306,2]
[351136297,1738348265481,-2577.0,0.00018306,2]
[351136298,1738348265491,-246.79375488,0.00018334,2]
[351136299,1738348265502,-207.95081796,0.00018334,2]
[351136300,1738348265511,-2577.0,0.00018334,2]
[351136301,1738348265521,-1153.16590249,0.00018348,2]
[351136302,1738348265531,-500.0,0.00018352,2]
[351136303,1738348265540,-500.0,0.00018352,2]
[351136304,1738348265550,-355.39239707,0.00018352,2]
[351136305,1738348265559,-500.0,0.00018352,2]
[351136306,1738348265568,-500.0,0.00018352,2]
[351136307,1738348265577,-500.0,0.00018352,2]
[351136308,1738348265588,-500.0,0.00018352,2]
[351136309,1738348265598,-523.02259264,0.00018352,2]
[351136310,1738348265607,-209.69988264,0.00018352,2]
[351136311,1738348265617,-500.0,0.00018352,2]
[351136312,1738348265626,-500.0,0.00018352,2]
[351136313,1738348265635,-786.06,0.00018352,2]
[351136314,1738348265644,-744.03,0.00018352,2]
[351136315,1738348265653,-1041.45,0.00018352,2]
[351136316,1738348265663,-500.0,0.00018352,2]
[351136317,1738348265674,-679.36,0.00018352,2]
[351136318,1738348265684,-500.0,0.00018352,2]
[351136319,1738348265694,-639.49,0.00018352,2]
[351136320,1738348265703,-983.34,0.00018352,2]
[351136321,1738348265712,-853.27,0.00018352,2]
[351136322,1738348265721,-2290.49,0.00018352,2]
[351136323,1738348265731,-15748.87,0.00018352,2]
[351136324,1738348265741,-1756.23,0.00018352,2]
[351136325,1738348265750,-5804.66,0.00018352,2]
[351136326,1738348265760,-1011.15,0.00018352,2]
[351136327,1738348265770,-1398.05,0.00018352,2]
[351136328,1738348265779,-500.0,0.00018352,2]
[351136329,1738348265789,-706.26,0.00018352,2]
[351136330,1738348265799,-1396.62,0.00018352,2]
[351136331,1738348265809,-1348.69,0.00018352,2]
[351136332,1738348265818,-1000.0,0.00018352,2]
[351136333,1738348265828,-1491.37,0.00018352,2]
[351136334,1738348265837,-500.0,0.00018353,2]
[351136335,1738348265846,-500.0,0.00018353,2]
[351136336,1738348265855,-500.0,0.00018353,2]
[351136337,1738348265865,-500.0,0.00018353,2]
[351136338,1738348265874,-500.0,0.00018353,2]
[351136339,1738348265884,-592.09,0.00018353,2]
[351136340,1738348265893,-541.54,0.00018353,2]
[351136341,1738348265902,-661.57,0.00018353,2]
[351136342,1738348265912,-568.28,0.00018353,2]
[351136343,1738348265921,-517.91,0.00018353,2]
[351136344,1738348265932,-500.0,0.00018353,2]
[351136345,1738348265942,-500.0,0.00018353,2]
[351136346,1738348265951,-573.54,0.00018353,2]
[351136347,1738348265961,-537.87009149,0.00018353,2]
[351136348,1738348265970,-1026.2,0.00018353,2]
[351136349,1738348265980,-730.37,0.00018353,2]
[351136350,1738348265990,-536.25,0.00018353,2]
[351136351,1738348265999,-978.34,0.00018353,2]
[351136352,1738348266008,-519.92,0.00018353,2]
[351136353,1738348266018,-932.35,0.00018353,2]
[351136354,1738348266027,-1577.73,0.00018353,2]
[351136355,1738348266037,-647.42,0.00018353,2]
[351136356,1738348266047,-2652.51,0.00018353,2]
[351136357,1738348266056,-286.106421,0.00018353,2]
[351136358,1738348266066,-500.0,0.00018353,2]
[351136359,1738348266076,-551.45,0.00018353,2]
[351136360,1738348266085,-616.52,0.00018353,2]
[351136361,1738348266094,-611.99,0.00018353,2]
[351136362,1738348266103,-1917.23,0.00018353,2]
[351136363,1738348266112,-1010.98,0.00018353,2]
[351136364,1738348266122,-345.181563,0.00018353,2]
[351136365,1738348266132,-500.0,0.00018353,2]
[351136366,1738348266142,-1746.14,0.00018353,2]
[351136367,1738348266152,-1127.11,0.00018353,2]
[351136368,1738348266162,-957.27,0.00018353,2]
[351136369,1738348266172,-683.39,0.00018353,2]
[351136370,1738348266187,-834.53,0.00018353,2]
[351136371,1738348266196,-3304.95,0.00018353,2]
[351136372,1738348266206,-1375.96,0.00018353,2]
[351136373,1738348266216,-1152.1,0.00018353,2]
[351136374,1738348266225,-637.73,0.00018353,2]
[351136375,1738348266235,-1174.79,0.00018353,2]